[Event "French Top 16-A 2024"]
[Site "Chartres"]
[Date "2024.06.02"]
[Round "4.3"]
[White "Postny, Evgeny"]
[Black "Saya, Ethan"]
[Result "1-0"]
[ECO "E17"]
[WhiteElo "2602"]
[BlackElo "2234"]
[Annotator "TA"]
[PlyCount "53"]
[EventDate "2024.06.01"]
[EventType "team-tourn"]
[EventCountry "FRA"]
[SourceTitle "playchess.com"]
[Source "ChessBase"]
[SourceQuality "1"]
[TimeControl "40/5400+30:1800+30"]

{[%evp 12,52,16,16,30,34,21,33,32,30,39,36,37,28,38,19,30,37,181,164,175,168,175,166,161,160,153,173,195,191,218,190,195,185,604,605,608,585,29990,29991,29998,29999,29999]} 1. d4 {[%emt 0:00:05]} Nf6 {[%emt 0:00:45]} 2. c4 {[%emt 0:00:10]} e6 {[%emt 0:00:06]} 3. Nf3 {[%emt 0:00:10]} b6 {[%emt 0:01:21]} 4. g3 {[%emt 0:00:11]} Bb7 {[%emt 0:00:06]} 5. Bg2 {[%emt 0:00:08]} Be7 {[%emt 0:00:13]} 6. O-O {[%emt 0:00:15]} O-O {[%emt 0:00:05]} 7. Re1 {[%emt 0:00:08]} a5 {[%emt 0:01:40]} 8. Nc3 {[%emt 0:01:01]} Ne4 {[%emt 0:00:12]} 9. Qc2 {[%emt 0:00:25]} Nxc3 {[%emt 0:00:50] White is slightly better.} 10. bxc3 {[%emt 0:00:07][%cal Of3g5]} f5 {[%emt 0:01:56] [#]} 11. d5 $1 {[%emt 0:01:38]} Na6 {[%emt 0:02:49]} 12. e4 {[%emt 0:05:14]} fxe4 {[%emt 0:02:05]} 13. Rxe4 {[%emt 0:04:17]} exd5 {[%emt 0:07:24]} 14. cxd5 {[%emt 0:04:02]} Bxd5 {[%emt 0:00:53] [#] Loses the game.} (14... Bf6 $14) 15. Rxe7 $1 $18 {[%emt 0:16:10][%mdl 512]} Qxe7 {[%emt 0:02:10]} 16. Ng5 {[%emt 0:00:07][%csl Gg5][%cal Rc2h7]} Qe1+ {[%emt 0:00:34]} 17. Bf1 {[%emt 0:00:05][%csl Gg5][%cal Rc2h7]} g6 {[%emt 0:01:34] [#] And now ...Bc4 would win.} 18. Bb2 $1 {[%emt 0:00:36]} Qe7 {[%emt 0:14:56]} 19. c4 $1 $40 {[%emt 0:14:46][%cal Bc3c4,Bc4d5,Bd5d6][%mdl 160] White has strong attack. Some like it hot} Qxg5 {[%emt 0:00:29]} 20. cxd5 {[%emt 0:00:07] Qc3 is the strong threat.} (20. Qc3 Qf6 21. Qxf6 Rxf6 22. Bxf6 Kf7 $17) 20... Nc5 {[%emt 0:05:34]} (20... Qxd5 21. Qc3 (21. Bc4 Nc5 $18) 21... Kf7 22. Qf6+ Ke8 23. Re1+) 21. Qc3 {[%emt 0:05:11] Inhibits Qf5.} Qh6 {[%emt 0:00:08][%cal Of8f2] Dodges Qg7+. Hoping for ...Rxf2!} 22. d6 $1 {[%emt 0:05:20] Threatens to win with Re1.} ({Inferior is} 22. Qh8+ Kf7 23. Qf6+ Kg8 $11) 22... cxd6 $2 {[%emt 0:02:56] [#]} (22... Rxf2 23. Bc4+ Ne6 24. Kxf2 Qxh2+ 25. Ke1 Qh1+ 26. Kd2 Qg2+ 27. Kc1 Qg1+ 28. Kc2 Qf2+ 29. Kb1 Qg1+ 30. Bc1 cxd6) 23. Bc4+ $1 {[%emt 0:01:08] This pair of bishops is nice.} Ne6 {[%emt 0:00:08][%cal Ob6b5]} 24. Rd1 {[%emt 0:05:08][%cal Ba1d1,Bd1d5,Bd5d7][%mdl 32]} d5 {[%emt 0:20:16]} 25. Rxd5 {[%emt 0:02:42] White mates.} Rxf2 {[%emt 0:00:09]} 26. Qh8+ {[%emt 0:00:26]} Kf7 {[%emt 0:00:07]} 27. Rxd7# {[%emt 0:00:03] Weighted Error Value: White=0.00 (flawless) /Black=0.69.  Mistake:       	---       	Black=2      OK:         	White=4     	Black=7      Best:        	White=1     	Black=2      Strong:       	White=4     	---        Brilliant:      	White=1     	---} 1-0

[Event "French Top 16-A 2024"]
[Site "Chartres"]
[Date "2024.06.02"]
[Round "4.4"]
[White "Parligras, Mircea-Emilian"]
[Black "Martirosyan, Haik M."]
[Result "1/2-1/2"]
[ECO "D37"]
[WhiteElo "2561"]
[BlackElo "2679"]
[Annotator "TA"]
[PlyCount "39"]
[EventDate "2024.06.01"]
[EventType "team-tourn"]
[EventCountry "FRA"]
[SourceTitle "playchess.com"]
[Source "ChessBase"]
[SourceQuality "1"]
[TimeControl "40/5400+30:1800+30"]

{[%evp 9,39,13,23,19,34,37,39,30,28,24,39,27,39,35,46,15,11,9,27,18,19,17,13,6,25,25,25,27,24,0,0,0]} 1. d4 {[%emt 0:00:04]} Nf6 {[%emt 0:00:07]} 2. c4 {[%emt 0:00:07]} e6 {[%emt 0:00:04]} 3. Nf3 {[%emt 0:00:12]} d5 {[%emt 0:00:07]} 4. Nc3 {[%emt 0:00:22]} Nbd7 {[%emt 0:00:06]} 5. Bf4 {[%emt 0:00:42]} dxc4 {[%emt 0:01:18]} 6. e3 $1 {[%emt 0:00:32]} b5 {[%emt 0:00:33]} 7. Nxb5 {[%emt 0:00:39]} Bb4+ {[%emt 0:00:21]} 8. Nc3 {[%emt 0:00:40] White is slightly better.} Nd5 {[%emt 0:00:28]} 9. a3 {[%emt 0:02:18]} Nxc3 {[%emt 0:01:01]} 10. Qd2 {[%emt 0:00:09]} Bxa3 {[%emt 0:01:03]} 11. Qxc3 {[%emt 0:00:46]} Bd6 {[%emt 0:00:17]} 12. Bxd6 {[%emt 0:01:45]} cxd6 {[%emt 0:00:07]} 13. Bxc4 {[%emt 0:00:19]} O-O {[%emt 0:02:11]} 14. O-O {[%emt 0:01:07]} Bb7 {[%emt 0:01:32]} 15. Be2 {[%emt 0:00:58]} a5 {[%emt 0:03:38]} 16. Rfc1 {[%emt 0:05:03]} Nf6 {[%emt 0:01:14]} 17. Nd2 {[%emt 0:02:02]} Ne4 {[%emt 0:00:17]} 18. Nxe4 {[%emt 0:00:08]} Bxe4 {[%emt 0:00:04]} 19. Bd3 {[%emt 0:00:45]} Bxd3 {[%emt 0:10:21]} 20. Qxd3 {[%emt 0:00:07] Weighted Error Value: White=0.05 (flawless) /Black=0.04 (flawless) .  Inaccurate:     	White=1     	---        OK:         	White=8     	Black=6      Best:        	White=1     	Black=1} 1/2-1/2

[Event "French Top 16-A 2024"]
[Site "Chartres"]
[Date "2024.06.02"]
[Round "4.4"]
[White "Bonte, Andrei-Mihai"]
[Black "Barseghyan, Harutyun"]
[Result "0-1"]
[ECO "D38"]
[WhiteElo "2270"]
[BlackElo "2431"]
[Annotator "RC"]
[PlyCount "58"]
[EventDate "2024.06.01"]
[EventType "team-tourn"]
[EventCountry "FRA"]
[SourceTitle "playchess.com"]
[Source "ChessBase"]
[SourceQuality "1"]
[TimeControl "40/5400+30:1800+30"]

1. d4 {[%emt 0:00:03]} Nf6 {[%emt 0:03:55]} 2. Nf3 {[%emt 0:02:41]} e6 {[%emt 0:00:10]} 3. c4 {[%emt 0:00:22]} d5 {[%emt 0:01:21]} 4. Nc3 {[%emt 0:00:51]} Bb4 {[%emt 0:00:43]} 5. cxd5 {[%emt 0:04:32]} exd5 {[%emt 0:00:05]} 6. Bg5 {[%emt 0:00:08]} h6 {[%emt 0:00:11]} 7. Bxf6 {[%emt 0:06:21]} Qxf6 {[%emt 0:09:17]} 8. g3 {[%emt 0:03:13]} c6 {[%emt 0:05:59]} 9. Bg2 {[%emt 0:04:48]} O-O {[%emt 0:00:28]} 10. O-O {[%emt 0:00:08]} Nd7 {[%emt 0:03:33]} 11. a3 {[%emt 0:06:38]} Bd6 {[%emt 0:01:06]} 12. b4 {[%emt 0:00:06]} Qe7 {[%emt 0:03:53]} 13. Qd3 {[%emt 0:05:06]} Re8 {[%emt 0:03:11]} 14. e3 {[%emt 0:08:09]} Nf6 {[%emt 0:03:34]} 15. Nd2 {[%emt 0:00:47]} g6 {[%emt 0:00:53]} 16. Nb3 {[%emt 0:06:02]} Bf5 {[%emt 0:00:17]} 17. Qd1 {[%emt 0:00:35]} h5 {[%emt 0:00:17]} 18. Re1 {[%emt 0:13:21]} h4 {[%emt 0:04:00]} 19. Bf3 {[%emt 0:02:36]} hxg3 {[%emt 0:02:17]} 20. hxg3 {[%emt 0:03:16]} Kg7 {[%emt 0:00:01]} 21. Kg2 {[%emt 0:05:52]} Rh8 {[%emt 0:00:46]} 22. Rh1 {[%emt 0:00:55]} Rxh1 {[%emt 0:00:46]} 23. Qxh1 {[%emt 0:06:23]} Rh8 {[%emt 0:01:50]} 24. Qd1 {[%emt 0:01:15]} Ne4 {[%emt 0:02:23]} 25. Nxe4 {[%emt 0:08:12]} dxe4 {[%emt 0:01:09]} 26. Be2 {[%emt 0:00:04]} Qg5 {[%emt 0:02:04]} 27. d5 {[%emt 0:06:21]} Bh3+ {[%emt 0:00:19]} 28. Kh2 {[%emt 0:00:19]} Bxg3+ {[%emt 0:02:09]} 29. fxg3 {[%emt 0:01:45]} Bf1+ {[%emt 0:00:06]} 0-1

[Event "French Top 16-A 2024"]
[Site "Chartres"]
[Date "2024.06.02"]
[Round "4.5"]
[White "Cornette, Matthieu"]
[Black "Wirig, Anthony"]
[Result "*"]
[ECO "B35"]
[WhiteElo "2568"]
[BlackElo "2453"]
[Annotator "RC"]
[PlyCount "22"]
[EventDate "2024.06.01"]
[EventType "team-tourn"]
[EventCountry "FRA"]
[SourceTitle "playchess.com"]
[Source "ChessBase"]
[SourceQuality "1"]
[TimeControl "40/5400+30:1800+30"]

1. e4 {[%emt 0:00:02]} c5 {[%emt 0:00:37]} 2. Nf3 {[%emt 0:00:06]} Nc6 {[%emt 0:00:06]} 3. d4 {[%emt 0:00:07]} cxd4 {[%emt 0:00:05]} 4. Nxd4 {[%emt 0:00:05]} g6 {[%emt 0:00:09]} 5. Nc3 {[%emt 0:01:12]} Bg7 {[%emt 0:00:08]} 6. Be3 {[%emt 0:00:32]} Nf6 {[%emt 0:00:09]} 7. Bc4 {[%emt 0:01:20]} O-O {[%emt 0:00:10]} 8. Bb3 {[%emt 0:01:57]} Re8 {[%emt 0:00:10]} 9. f3 {[%emt 0:04:26]} d5 {[%emt 0:00:13]} 10. Nxd5 {[%emt 0:15:29]} Nxd5 {[%emt 0:01:28]} 11. exd5 {[%emt 0:05:03]} Nb4 {[%emt 0:00:50]} *

[Event "French Top 16-A 2024"]
[Site "Chartres"]
[Date "2024.06.02"]
[Round "4.5"]
[White "Bailet, Pierre"]
[Black "Emmenecker, Pierre-Antoine"]
[Result "1/2-1/2"]
[ECO "C42"]
[WhiteElo "2492"]
[BlackElo "2306"]
[Annotator "TA"]
[PlyCount "104"]
[EventDate "2024.06.01"]
[EventType "team-tourn"]
[EventCountry "FRA"]
[SourceTitle "playchess.com"]
[Source "ChessBase"]
[SourceQuality "1"]
[TimeControl "40/5400+30:1800+30"]

{[%evp 24,104,33,11,8,6,2,6,6,0,44,0,10,-6,-36,-11,-14,-25,0,0,0,-89,-93,-92,-88,-93,-91,-77,-92,-75,-96,-89,-98,-84,12,0,56,-12,-12,-15,-16,-16,-12,-12,-19,-19,-19,-134,0,-8,-8,-8,0,0,0,-7,-8,-279,-279,-821,-717,-406,-137,-269,-8,-8,-8,-8,-8,-8,-8,-8,-8,-2319,-1303,-1718,0,0,0,-405,0,0,0]} 1. e4 {[%emt 0:00:11]} e5 {[%emt 0:00:05]} 2. Nf3 {[%emt 0:00:09]} Nf6 {[%emt 0:00:04]} 3. Nxe5 {[%emt 0:02:52]} d6 {[%emt 0:00:08]} 4. Nf3 {[%emt 0:00:11]} Nxe4 {[%emt 0:00:06]} 5. d4 {[%emt 0:00:26]} d5 {[%emt 0:00:07]} 6. Bd3 {[%emt 0:00:28]} Bf5 {[%emt 0:00:24]} 7. O-O {[%emt 0:01:21]} Be7 {[%emt 0:00:07]} 8. Re1 {[%emt 0:02:13]} O-O {[%emt 0:00:18]} 9. Nbd2 {[%emt 0:04:54] C42: Petroff Defence: 3 Nxe5 and unusual White 3rd moves.} Nd6 {[%emt 0:00:11]} 10. Bxf5 {[%emt 0:01:51]} Nxf5 {[%emt 0:00:21]} 11. Nf1 {[%emt 0:01:08]} Bd6 {[%emt 0:17:55]} 12. Qd3 {[%emt 0:07:42]} Qf6 $146 {[%emt 0:03:49]} ({Predecessor:} 12... Qd7 13. Ne5 Bxe5 14. Rxe5 Ne7 15. Re2 c6 16. Bg5 Ng6 17. Rae1 f6 18. Bd2 Na6 {½-½ Cipka,I-Sanner,Z (2380) Webchess op1 Gr14 email 2005}) 13. Qb3 {[%emt 0:31:47]} Nxd4 {[%emt 0:03:11]} 14. Nxd4 {[%emt 0:00:43]} Qxd4 {[%emt 0:00:09]} 15. Qxb7 {[%emt 0:03:51]} Nd7 {[%emt 0:00:18]} 16. Be3 {[%emt 0:03:55]} Qe4 {[%emt 0:10:08]} 17. Qb5 {[%emt 0:13:16]} (17. Ng3 {seems wilder.} Qxc2 18. Rac1 Qa4 19. Qxd5 Nf6 20. Qc4) 17... Nf6 {[%emt 0:03:26]} 18. Qd3 {[%emt 0:01:57]} (18. Qc6 {is more complex.} Rae8 19. Bg5 Qf5 20. Rxe8 Nxe8 21. Be3) 18... Qxd3 {[%emt 0:11:17]} 19. cxd3 {[%emt 0:00:06]} Rfb8 {[%emt 0:01:27]} 20. Re2 {[%emt 0:01:22]} c5 {[%emt 0:07:09]} 21. Bg5 {[%emt 0:01:06]} Ng4 {[%emt 0:04:22]} 22. d4 {[%emt 0:09:45]} (22. Rd1 $11 {remains equal.}) 22... cxd4 $17 {[%emt 0:02:32]} 23. Rd1 {[%emt 0:00:02]} f6 $1 {[%emt 0:07:55]} 24. Bh4 {[%emt 0:00:02]} Bc5 {[%emt 0:06:12]} 25. Bg3 {[%emt 0:02:34]} Re8 {[%emt 0:05:22]} 26. Rxe8+ {[%emt 0:00:40]} Rxe8 {[%emt 0:00:08]} 27. b4 {[%emt 0:00:07]} Bb6 {[%emt 0:02:04]} (27... Bxb4 $6 28. Rxd4 Re4 29. Rxd5 $11) 28. a4 {[%emt 0:00:05] [#]} Ne3 {[%emt 0:02:45]} (28... a6 $1 $17 29. a5 Ba7) 29. Re1 $11 {[%emt 0:03:04]} a5 {[%emt 0:08:23]} ({Better is} 29... a6 $11) 30. b5 {[%emt 0:03:48]} (30. fxe3 dxe3 31. bxa5 Bxa5 32. Rxe3 Bb6 $11) (30. Nd2 $1 $14) 30... Kf7 $11 {[%emt 0:01:34]} 31. fxe3 {[%emt 0:00:42]} dxe3 {[%emt 0:00:06]} 32. Nxe3 {[%emt 0:01:19]} Rxe3 {[%emt 0:03:06]} (32... Bxe3+ 33. Bf2 Bxf2+ 34. Kxf2) 33. Rxe3 {[%emt 0:00:22]} Bxe3+ {[%emt 0:00:01]} 34. Kf1 $1 {[%emt 0:01:54]} ({But not} 34. Bf2 Bxf2+ 35. Kxf2 Ke6 $17) 34... Bb6 {[%emt 0:00:06]} 35. Bf2 {[%emt 0:01:01]} (35. Ke2 $11) 35... d4 {[%emt 0:01:54]} (35... Bxf2 $17 36. Kxf2 Ke7) 36. Bg3 {[%emt 0:00:57]} Ke6 {[%emt 0:00:31]} ({Wrong is} 36... d3 $2 37. Ke1 $18) 37. Ke2 {[%emt 0:00:03]} Kd5 {[%emt 0:00:06]} 38. Kd3 {[%emt 0:00:04]} g5 {[%emt 0:00:53]} 39. Be1 {[%emt 0:00:44]} f5 {[%emt 0:00:29]} 40. h3 $2 {[%emt 0:00:48][%mdl 8192]} (40. g3 $11) 40... f4 $19 {[%emt 0:00:37]} 41. Bf2 $2 {[%emt 0:03:36]} (41. g3 fxg3 42. Bxg3) 41... h5 $1 $19 {[%emt 0:05:58]} 42. g4 {[%emt 0:00:34]} fxg3 {[%emt 0:05:43]} 43. Bxg3 {[%emt 0:00:04]} g4 $2 {[%emt 0:07:40]} ({Black should play} 43... h4 $1 $19 {[%cal Rh4g3]} 44. Bf2 Bc5) 44. hxg4 $11 {[%emt 0:00:29]} hxg4 {[%emt 0:00:03]} 45. Bf2 {[%emt 0:04:48]} Bc5 {[%emt 0:11:58]} 46. Bg3 {[%emt 0:01:54]} Be7 {[%emt 0:00:54]} 47. Be1 {[%emt 0:07:19]} Bd8 {[%emt 0:00:30]} (47... Bf6 $5 48. b6 $8 Be5 49. Bxa5 g3 $11) 48. Bf2 $2 {[%emt 0:01:33][%mdl 8192]} (48. Bg3 $11) 48... Bf6 $1 $19 {[%emt 0:00:35]} 49. Be1 {[%emt 0:00:07] [#]} Bd8 $2 {[%emt 0:01:08]} (49... Be5 $1 $19 50. Bxa5 g3) 50. Bf2 $11 {[%emt 0:00:08]} Bf6 $2 {[%emt 0:00:40][%mdl 8192]} (50... Bb6 $11) 51. Be1 $1 $19 {[%emt 0:00:32] [#]} Bg5 $2 {[%emt 0:00:19]} ({Inferior is} 51... Bd8 52. Bg3 $11) (51... Be5 $1 $19 {Hoping for ...g3.} 52. Bxa5 g3) 52. Bf2 $11 {[%emt 0:03:47]} Bf6 {[%emt 0:00:36]} 1/2-1/2

[Event "French Top 16-A 2024"]
[Site "Chartres"]
[Date "2024.06.02"]
[Round "4.5"]
[White "Auvray, Juliette"]
[Black "Tregubov, Pavel V."]
[Result "0-1"]
[ECO "B35"]
[WhiteElo "1969"]
[BlackElo "2562"]
[Annotator "RC"]
[PlyCount "53"]
[EventDate "2024.06.01"]
[EventType "team-tourn"]
[EventCountry "FRA"]
[SourceTitle "playchess.com"]
[Source "ChessBase"]
[SourceQuality "1"]
[TimeControl "40/5400+30:1800+30"]

1. e4 {[%emt 0:00:02]} c5 {[%emt 0:00:37]} 2. Nf3 {[%emt 0:00:06]} Nc6 {[%emt 0:00:06]} 3. d4 {[%emt 0:00:07]} cxd4 {[%emt 0:00:05]} 4. Nxd4 {[%emt 0:00:05]} g6 {[%emt 0:00:09]} 5. Nc3 {[%emt 0:01:12]} Bg7 {[%emt 0:00:08]} 6. Be3 {[%emt 0:00:32]} Nf6 {[%emt 0:00:09]} 7. Bc4 {[%emt 0:01:20]} O-O {[%emt 0:00:10]} 8. Bb3 {[%emt 0:01:57]} Re8 {[%emt 0:00:10]} 9. f3 {[%emt 0:04:26]} d5 {[%emt 0:00:13]} 10. Nxd5 {[%emt 0:15:29]} Nxd5 {[%emt 0:01:28]} 11. exd5 {[%emt 0:05:03]} Nb4 {[%emt 0:00:50]} 12. c3 {[%emt 0:06:57]} Nxd5 {[%emt 0:01:06]} 13. Bg5 {[%emt 0:06:46]} h6 {[%emt 0:15:48]} 14. Bh4 {[%emt 0:05:16]} Nf4 {[%emt 0:02:09]} 15. O-O {[%emt 0:11:02]} Bxd4+ {[%emt 0:14:29]} 16. cxd4 {[%emt 0:00:09]} Qxd4+ {[%emt 0:00:06]} 17. Bf2 {[%emt 0:06:09]} Qxb2 {[%emt 0:07:57]} 18. Rb1 {[%emt 0:03:20]} Qf6 {[%emt 0:00:16]} 19. Ba4 {[%emt 0:04:33]} Rf8 {[%emt 0:01:28]} 20. Re1 {[%emt 0:03:32]} e5 {[%emt 0:05:39]} 21. Bg3 {[%emt 0:06:02]} b6 {[%emt 0:06:23]} 22. Re3 {[%emt 0:05:42]} Bf5 {[%emt 0:02:43]} 23. Rb4 {[%emt 0:01:52]} Rfd8 {[%emt 0:03:32]} 24. Qa1 {[%emt 0:01:43]} Qd6 {[%emt 0:01:58]} 25. Rc4 {[%emt 0:02:29]} b5 {[%emt 0:06:14]} 26. Bxb5 {[%emt 0:01:21]} Qb6 {[%emt 0:00:22]} 27. Qc1 {[%emt 0:05:43]} 0-1

[Event "French Top 16-A 2024"]
[Site "Chartres"]
[Date "2024.06.02"]
[Round "4.6"]
[White "Cornette, Matthieu"]
[Black "Wirig, Anthony"]
[Result "1/2-1/2"]
[ECO "B45"]
[WhiteElo "2568"]
[BlackElo "2453"]
[Annotator "TA"]
[PlyCount "64"]
[EventDate "2024.06.01"]
[EventType "team-tourn"]
[EventCountry "FRA"]
[SourceTitle "playchess.com"]
[Source "ChessBase"]
[SourceQuality "1"]
[TimeControl "40/5400+30:1800+30"]

{[%evp 15,64,0,0,0,0,-2,-15,-10,0,6,34,30,62,52,55,51,70,69,89,82,100,91,142,95,85,82,106,108,105,98,133,89,95,104,91,0,0,-2,-8,-4,-8,-10,-12,-46,-44,-53,-39,-37,-31,-35,-33]} 1. e4 {[%emt 0:00:27]} c5 {[%emt 0:00:35]} 2. Nf3 {[%emt 0:00:16]} e6 {[%emt 0:00:36]} 3. d4 {[%emt 0:00:42]} cxd4 {[%emt 0:00:07]} 4. Nxd4 {[%emt 0:00:06]} Nf6 {[%emt 0:02:30][%cal Bg8f6,Bf6e4,Be4c5][%mdl 32]} 5. Nc3 {[%emt 0:00:28]} Nc6 {[%emt 0:00:13]} 6. Be2 {[%emt 0:02:00]} Bb4 {[%emt 0:04:27]} 7. O-O {[%emt 0:00:53]} Bxc3 {[%emt 0:01:53]} 8. bxc3 {[%emt 0:00:10]} Nxe4 {[%emt 0:00:25]} 9. Nxc6 {[%emt 0:00:32]} dxc6 {[%emt 0:01:32]} 10. Bd3 {[%emt 0:00:10]} Nc5 {[%emt 0:02:17]} 11. Qg4 {[%emt 0:02:02] The position is equal.} (11. Ba3 {simplifies} Nxd3 12. cxd3 b6 13. Qg4) 11... O-O {[%emt 0:00:42]} 12. Ba3 {[%emt 0:11:54] This pair of bishops is nice.} e5 {[%emt 0:02:12]} 13. Qg3 {[%emt 0:13:11] Really sharp!} b6 {[%emt 0:30:40]} 14. Bxc5 {[%emt 0:01:31]} bxc5 {[%emt 0:00:12]} 15. Qxe5 $40 {[%emt 0:00:07][%mdl 128] White is up to no good.} Be6 {[%emt 0:10:47]} 16. Qxc5 {[%emt 0:06:32] White is more active.} Qb6 {[%emt 0:00:07]} 17. Qe5 {[%emt 0:05:36]} Rab8 {[%emt 0:02:17][%cal Ba8b8,Bb8d8,Bd8d6][%mdl 32]} 18. h4 {[%emt 0:04:40][%cal Of1b1]} Rfd8 {[%emt 0:03:44]} (18... Rbe8 $142) 19. Rfe1 {[%emt 0:05:10]} (19. Rab1 $142 Qxb1 20. Rxb1 Rxb1+ 21. Kh2) 19... Rd5 $16 {[%emt 0:04:41]} 20. Qf4 {[%emt 0:00:39]} Rc5 {[%emt 0:01:28]} 21. Re3 {[%emt 0:05:03]} Rd8 {[%emt 0:03:11]} 22. Rae1 {[%emt 0:01:16]} g6 {[%emt 0:10:59]} 23. Rg3 {[%emt 0:18:22][%cal Oe1e6] [#] And now Rxe6! would win.} Qb8 {[%emt 0:04:28]} 24. Qf6 {[%emt 0:01:09] Strongly threatening Rxe6.} Rd6 {[%emt 0:01:42]} 25. Qe7 {[%emt 0:05:27]} (25. Rge3 $16) 25... Qd8 $11 {[%emt 0:04:09]} 26. Qxa7 {[%emt 0:01:03]} Ra5 {[%emt 0:00:43]} 27. Qb7 {[%emt 0:01:53]} Qxh4 {[%emt 0:01:00][%cal Oa5h5] [#] White must now prevent ...Rh5!} 28. Re4 {[%emt 0:01:33]} Qd8 {[%emt 0:01:20]} 29. a4 {[%emt 0:00:46]} c5 {[%emt 0:00:59] Hoping for ...Rb6. Black is slightly better.} 30. Re1 {[%emt 0:01:25]} c4 {[%emt 0:05:34]} 31. Bf1 {[%emt 0:00:45]} Rxa4 {[%emt 0:00:00]} 32. Rge3 {[%emt 0:00:24]} Ra8 {[%emt 0:01:00] Weighted Error Value: White=0.11 (very precise) /Black=0.12 (very precise) .  Mistake:       	White=2     	Black=1      Inaccurate:     	White=2     	Black=3      OK:         	White=12    	Black=10     Best:        	White=1     	Black=1} 1/2-1/2

[Event "French Top 16-A 2024"]
[Site "Chartres"]
[Date "2024.06.02"]
[Round "4.6"]
[White "Loiseau, Quentin"]
[Black "Degraeve, Jean-Marc"]
[Result "*"]
[ECO "B45"]
[WhiteElo "2411"]
[BlackElo "2463"]
[Annotator "RC"]
[PlyCount "24"]
[EventDate "2024.06.01"]
[EventType "team-tourn"]
[EventCountry "FRA"]
[SourceTitle "playchess.com"]
[Source "ChessBase"]
[SourceQuality "1"]
[TimeControl "40/5400+30:1800+30"]

1. e4 {[%emt 0:00:27]} c5 {[%emt 0:00:35]} 2. Nf3 {[%emt 0:00:16]} e6 {[%emt 0:00:36]} 3. d4 {[%emt 0:00:42]} cxd4 {[%emt 0:00:07]} 4. Nxd4 {[%emt 0:00:06]} Nf6 {[%emt 0:02:30]} 5. Nc3 {[%emt 0:00:28]} Nc6 {[%emt 0:00:13]} 6. Be2 {[%emt 0:02:00]} Bb4 {[%emt 0:04:27]} 7. O-O {[%emt 0:00:53]} Bxc3 {[%emt 0:01:53]} 8. bxc3 {[%emt 0:00:10]} Nxe4 {[%emt 0:00:25]} 9. Nxc6 {[%emt 0:00:32]} dxc6 {[%emt 0:01:32]} 10. Bd3 {[%emt 0:00:10]} Nc5 {[%emt 0:02:17]} 11. Qg4 {[%emt 0:02:02]} O-O {[%emt 0:00:42]} 12. Ba3 {[%emt 1:28:44]} e5 {[%emt 0:02:12]} *

[Event "French Top 16-A 2024"]
[Site "Chartres"]
[Date "2024.06.02"]
[Round "4.6"]
[White "Dumas, Charles"]
[Black "Migot, Tangi"]
[Result "0-1"]
[ECO "B22"]
[WhiteElo "2256"]
[BlackElo "2326"]
[Annotator "RC"]
[PlyCount "108"]
[EventDate "2024.06.01"]
[EventType "team-tourn"]
[EventCountry "FRA"]
[SourceTitle "playchess.com"]
[Source "ChessBase"]
[SourceQuality "1"]
[TimeControl "40/5400+30:1800+30"]

1. e4 {[%emt 0:00:02]} c5 {[%emt 0:00:09]} 2. c3 {[%emt 0:00:08]} d5 {[%emt 0:01:47]} 3. exd5 {[%emt 0:00:09]} Qxd5 {[%emt 0:00:06]} 4. d4 {[%emt 0:00:10]} Nf6 {[%emt 0:00:16]} 5. Nf3 {[%emt 0:00:11]} e6 {[%emt 0:00:15]} 6. Be3 {[%emt 0:00:21]} cxd4 {[%emt 0:01:33]} 7. cxd4 {[%emt 0:00:04]} Bb4+ {[%emt 0:00:08]} 8. Nc3 {[%emt 0:00:23]} O-O {[%emt 0:00:09]} 9. Bd3 {[%emt 0:01:54]} Bd7 {[%emt 0:00:50]} 10. O-O {[%emt 0:01:20]} Bxc3 {[%emt 0:00:17]} 11. bxc3 {[%emt 0:00:04]} Bb5 {[%emt 0:00:09]} 12. Bxb5 {[%emt 0:04:54]} Qxb5 {[%emt 0:00:07]} 13. Rb1 {[%emt 0:00:39]} Qa6 {[%emt 0:00:33]} 14. Qb3 {[%emt 0:10:51]} b6 {[%emt 0:02:18]} 15. Ne5 {[%emt 0:23:14]} Rc8 {[%emt 0:04:13]} 16. Rbc1 {[%emt 0:28:48]} Nc6 {[%emt 0:06:55]} 17. Nc4 {[%emt 0:03:56]} b5 {[%emt 0:19:43]} 18. Qa3 {[%emt 0:06:46]} Qxa3 {[%emt 0:02:29]} 19. Nxa3 {[%emt 0:00:02]} b4 {[%emt 0:05:34]} 20. Nb5 {[%emt 0:03:08]} Ne4 {[%emt 0:16:01]} 21. c4 {[%emt 0:02:46]} a6 {[%emt 0:04:49]} 22. f3 {[%emt 0:00:51]} Nf6 {[%emt 0:00:15]} 23. Nd6 {[%emt 0:00:34]} Rd8 {[%emt 0:00:06]} 24. Nb7 {[%emt 0:05:13]} Rdc8 {[%emt 0:05:52]} 25. Nd6 {[%emt 0:00:17]} Rc7 {[%emt 0:01:35]} 26. Rfd1 {[%emt 0:00:33]} Rd8 {[%emt 0:05:53]} 27. Ne4 {[%emt 0:00:17]} Na5 {[%emt 0:01:49]} 28. d5 {[%emt 0:03:03]} Rxc4 {[%emt 0:02:18]} 29. Bb6 {[%emt 0:01:12]} Rdc8 {[%emt 0:00:26]} 30. Rb1 {[%emt 0:01:04]} Nb7 {[%emt 0:02:17]} 31. Nxf6+ {[%emt 0:00:30]} gxf6 {[%emt 0:00:01]} 32. dxe6 {[%emt 0:01:34]} fxe6 {[%emt 0:00:44]} 33. Rd7 {[%emt 0:00:14]} Nc5 {[%emt 0:05:21]} 34. Rd6 {[%emt 0:00:05]} Na4 {[%emt 0:00:34]} 35. Ba5 {[%emt 0:01:43]} Rc1+ {[%emt 0:01:11]} 36. Rxc1 {[%emt 0:00:04]} Rxc1+ {[%emt 0:00:03]} 37. Kf2 {[%emt 0:00:03]} Rc2+ {[%emt 0:00:07]} 38. Kg3 {[%emt 0:00:05]} Nc3 {[%emt 0:01:36]} 39. Bxb4 {[%emt 0:01:10]} Ne2+ {[%emt 0:00:15]} 40. Kh3 {[%emt 0:01:33]} Rxa2 {[%emt 0:05:00]} 41. Bc5 {[%emt 0:03:47]} Kf7 {[%emt 0:08:29]} 42. g3 {[%emt 0:01:15]} a5 {[%emt 0:02:33]} 43. Kg4 {[%emt 0:04:24]} Rc2 {[%emt 0:04:14]} 44. Be3 {[%emt 0:10:41]} a4 {[%emt 0:02:43]} 45. Ra6 {[%emt 0:00:19]} Rc3 {[%emt 0:01:10]} 46. Bf2 {[%emt 0:03:29]} a3 {[%emt 0:04:29]} 47. f4 {[%emt 0:01:15]} Nc1 {[%emt 0:04:52]} 48. Bd4 {[%emt 0:02:01]} Rd3 {[%emt 0:01:25]} 49. Ra4 {[%emt 0:00:50]} Kg6 {[%emt 0:01:46]} 50. f5+ {[%emt 0:03:07]} exf5+ {[%emt 0:00:10]} 51. Kh4 {[%emt 0:00:08]} a2 {[%emt 0:01:24]} 52. Ba1 {[%emt 0:03:32]} Rd2 {[%emt 0:02:02]} 53. h3 {[%emt 0:01:17]} Nb3 {[%emt 0:00:29]} 54. Bc3 {[%emt 0:00:52]} Rc2 {[%emt 0:00:14]} 0-1